{"text_format":"3","workbook":"xlsx","n_sheets":1,"sheets":["Angebot"],"not_rendered":{"images":1,"defined_names":20},"read":"whole","date_system":"1900"}

{"sheet":"Angebot","index":0,"n_rows":39,"n_cols":7,"rows_kept":39,"merged":[[0,1,3,1],[0,3,0,6],[1,4,1,6],[2,4,2,6],[32,3,35,4],[36,3,36,6],[37,3,37,5],[38,3,38,5]]}
[{"$nulls":3},"KONSTRUKTIONSANGEBOT"]
[{"$nulls":3},"Firmenname","| Geben Sie die Postanschrift der Firma in dieser Zelle ein."]
[{"$nulls":3},"Telefon","| Geben Sie die Faxnummer der Firma und die E-Mail-Kontaktadresse in dieser Zelle ein."]
[{"$nulls":3},"MENGE","BESCHREIBUNG","EINZELPREIS","BETRAG"]
[null,"KUNDE",null,10,"Artikel 1",{"v":165,"d":"165.00 €"},{"$f":"IFERROR(Einzelposten[[#This Row],[MENGE]]*Einzelposten[[#This Row],[EINZELPREIS]], \"\")","v":{"v":1650,"d":"1,650.00 €"}}]
[null,"Geben Sie in dieser Zelle den Kundennamen ein.",null,21,"Objekt 2",{"v":40,"d":"40.00 €"},{"$f":"IFERROR(Einzelposten[[#This Row],[MENGE]]*Einzelposten[[#This Row],[EINZELPREIS]], \"\")","v":{"v":840,"d":"840.00 €"}}]
[null,"VORSCHLAGSNUMMER",null,5,"Objekt 3",{"v":10.5,"d":"10.50 €"},{"$f":"IFERROR(Einzelposten[[#This Row],[MENGE]]*Einzelposten[[#This Row],[EINZELPREIS]], \"\")","v":{"v":52.5,"d":"52.50 €"}}]
[null,"C-1234",null,164,"Artikel 4",{"v":2.75,"d":"2.75 €"},{"$f":"IFERROR(Einzelposten[[#This Row],[MENGE]]*Einzelposten[[#This Row],[EINZELPREIS]], \"\")","v":{"v":451,"d":"451.00 €"}}]
[null,"DATUM",null,6,"Artikel 5",{"v":12,"d":"12.00 €"},{"$f":"IFERROR(Einzelposten[[#This Row],[MENGE]]*Einzelposten[[#This Row],[EINZELPREIS]], \"\")","v":{"v":72,"d":"72.00 €"}}]
[null,{"$f":"TODAY()","v":"2018-11-15"},null,18,"Artikel 6",{"v":5.5,"d":"5.50 €"},{"$f":"IFERROR(Einzelposten[[#This Row],[MENGE]]*Einzelposten[[#This Row],[EINZELPREIS]], \"\")","v":{"v":99,"d":"99.00 €"}}]
[null,"ADRESSE",null,1,"Artikel 7",{"v":25,"d":"25.00 €"},{"$f":"IFERROR(Einzelposten[[#This Row],[MENGE]]*Einzelposten[[#This Row],[EINZELPREIS]], \"\")","v":{"v":25,"d":"25.00 €"}}]
[null,"Geben Sie die Postanschrift des Kunden in dieser Zelle ein.",{"$nulls":4},{"$f":"IFERROR(Einzelposten[[#This Row],[MENGE]]*Einzelposten[[#This Row],[EINZELPREIS]], \"\")","v":{"v":0,"d":"0.00 €"}}]
[null,"ORT/BUNDESLAND/POSTLEITZAHL",{"$nulls":4},{"$f":"IFERROR(Einzelposten[[#This Row],[MENGE]]*Einzelposten[[#This Row],[EINZELPREIS]], \"\")","v":{"v":0,"d":"0.00 €"}}]
[null,"Geben Sie in dieser Zelle Postleitzahl und Ort des Kunden ein.",{"$nulls":4},{"$f":"IFERROR(Einzelposten[[#This Row],[MENGE]]*Einzelposten[[#This Row],[EINZELPREIS]], \"\")","v":{"v":0,"d":"0.00 €"}}]
[null,"TELEFON",{"$nulls":4},{"$f":"IFERROR(Einzelposten[[#This Row],[MENGE]]*Einzelposten[[#This Row],[EINZELPREIS]], \"\")","v":{"v":0,"d":"0.00 €"}}]
[null,"Geben Sie in dieser Zelle die Telefonnummer des Kunden ein.",{"$nulls":4},{"$f":"IFERROR(Einzelposten[[#This Row],[MENGE]]*Einzelposten[[#This Row],[EINZELPREIS]], \"\")","v":{"v":0,"d":"0.00 €"}}]
[null,"E-MAIL:",{"$nulls":4},{"$f":"IFERROR(Einzelposten[[#This Row],[MENGE]]*Einzelposten[[#This Row],[EINZELPREIS]], \"\")","v":{"v":0,"d":"0.00 €"}}]
[null,"Geben Sie in dieser Zelle die E-Mail-Adresse des Kunden ein.",{"$nulls":4},{"$f":"IFERROR(Einzelposten[[#This Row],[MENGE]]*Einzelposten[[#This Row],[EINZELPREIS]], \"\")","v":{"v":0,"d":"0.00 €"}}]
[null,"VERKÄUFER",{"$nulls":4},{"$f":"IFERROR(Einzelposten[[#This Row],[MENGE]]*Einzelposten[[#This Row],[EINZELPREIS]], \"\")","v":{"v":0,"d":"0.00 €"}}]
[null,"Geben Sie den Verkäufer in dieser Zelle ein.",{"$nulls":4},{"$f":"IFERROR(Einzelposten[[#This Row],[MENGE]]*Einzelposten[[#This Row],[EINZELPREIS]], \"\")","v":{"v":0,"d":"0.00 €"}}]
[null,"PROJEKT",{"$nulls":4},{"$f":"IFERROR(Einzelposten[[#This Row],[MENGE]]*Einzelposten[[#This Row],[EINZELPREIS]], \"\")","v":{"v":0,"d":"0.00 €"}}]
[null,"Geben Sie in dieser Zelle den Projektnamen ein.",{"$nulls":4},{"$f":"IFERROR(Einzelposten[[#This Row],[MENGE]]*Einzelposten[[#This Row],[EINZELPREIS]], \"\")","v":{"v":0,"d":"0.00 €"}}]
[null,"BEARBEITET VON:",{"$nulls":4},{"$f":"IFERROR(Einzelposten[[#This Row],[MENGE]]*Einzelposten[[#This Row],[EINZELPREIS]], \"\")","v":{"v":0,"d":"0.00 €"}}]
[null,"Geben Sie in dieser Zelle den Namen des Bearbeiters ein.",{"$nulls":4},{"$f":"IFERROR(Einzelposten[[#This Row],[MENGE]]*Einzelposten[[#This Row],[EINZELPREIS]], \"\")","v":{"v":0,"d":"0.00 €"}}]
[null,"ZU HÄNDEN VON",{"$nulls":4},{"$f":"IFERROR(Einzelposten[[#This Row],[MENGE]]*Einzelposten[[#This Row],[EINZELPREIS]], \"\")","v":{"v":0,"d":"0.00 €"}}]
[null,"Geben Sie Name und Adresse für den Vorschlag in dieser Zelle ein.",{"$nulls":4},{"$f":"IFERROR(Einzelposten[[#This Row],[MENGE]]*Einzelposten[[#This Row],[EINZELPREIS]], \"\")","v":{"v":0,"d":"0.00 €"}}]
[null,"ZAHLUNGSBEDINGUNGEN",{"$nulls":4},{"$f":"IFERROR(Einzelposten[[#This Row],[MENGE]]*Einzelposten[[#This Row],[EINZELPREIS]], \"\")","v":{"v":0,"d":"0.00 €"}}]
[null,"30 Tage netto",{"$nulls":4},{"$f":"IFERROR(Einzelposten[[#This Row],[MENGE]]*Einzelposten[[#This Row],[EINZELPREIS]], \"\")","v":{"v":0,"d":"0.00 €"}}]
[null,"FÄLLIGKEITSDATUM",{"$nulls":4},{"$f":"IFERROR(Einzelposten[[#This Row],[MENGE]]*Einzelposten[[#This Row],[EINZELPREIS]], \"\")","v":{"v":0,"d":"0.00 €"}}]
[null,{"$f":"TODAY()+30","v":"2018-12-15"},{"$nulls":4},{"$f":"IFERROR(Einzelposten[[#This Row],[MENGE]]*Einzelposten[[#This Row],[EINZELPREIS]], \"\")","v":{"v":0,"d":"0.00 €"}}]
[{"$nulls":5},"ZWISCHENSUMME",{"$f":"SUBTOTAL(109,Einzelposten[BETRAG])","v":{"v":3189.5,"d":"3,189.50 €"}}]
[{"$nulls":3},"DIESES ANGEBOT UMFASST DIE AUFGEFÜHRTEN BEDINGUNGEN:",null,"STEUERSATZ ",{"v":0.0775,"d":"7.75%"}]
[{"$nulls":3},"Bedingungen hier eingeben",null,"MEHRWERTSTEUER ",{"$f":"IFERROR(Zwischensumme*SteuerSatz, \"\")","v":{"v":247.18625,"d":"247.19 €"}}]
[{"$nulls":5},"SONSTIGES "]
[{"$nulls":5},"ERGEBNIS",{"$f":"IFERROR(Zwischensumme+G33+Sonstiges, \"\")","v":{"v":3436.68625,"d":"3,436.69 €"}}]
[]
[{"$nulls":3},"Unten unterzeichnen, um das Angebot zu akzeptieren:"]
[]
[{"$nulls":3},"Autorisierter Vertreter",null,null,"Datum"]